bitfinex/quotes_ETHUSD_20241109
["timestamp","ask_amount","ask_price","bid_price","bid_amount"]
[1731160982009,0.7511,3045.5,3044.7,2.78946059]
[1731160982171,0.7511,3045.5,3044.8,0.5558224]
[1731160982370,0.7511,3045.5,3044.9,0.06567449]
[1731160982602,0.7511,3045.5,3045.0,0.10717253]
[1731160983170,0.7511,3045.5,3044.8,0.4485]
[1731160983369,0.7511,3045.5,3044.9,0.31722822]
[1731160983610,0.7511,3045.5,3044.9,0.42447568]
[1731160984691,0.7511,3045.5,3045.0,0.06567454]
[1731160984907,0.7511,3045.5,3044.9,0.42447568]
[1731160985082,0.7511,3045.5,3045.1,0.1070976]
[1731160985411,0.7511,3045.5,3045.2,0.10702268]
[1731160985634,0.7511,3045.5,3045.0,0.06567455]
[1731160985793,0.7511,3045.5,3045.1,0.1070976]
[1731160986531,0.30739697,3045.4,3045.1,0.1070976]
[1731160986684,0.30739697,3045.3,3045.1,0.1070976]
[1731160987016,0.30739697,3045.2,3045.1,0.1070976]
[1731160987223,0.30739697,3045.2,3044.9,0.38290363]
[1731160987424,0.68747641,3045.3,3044.9,0.38290363]
[1731160987722,0.30739142,3045.2,3044.9,0.38290363]
[1731160987925,0.68747641,3045.3,3044.9,0.38290363]
[1731160988139,0.3073912,3045.2,3044.9,0.38290363]
[1731160988296,0.68747641,3045.3,3044.9,0.31722822]
[1731160988503,0.30739017,3045.2,3044.9,0.31722822]
[1731160988814,0.68747641,3045.3,3044.9,0.31722822]
[1731160988983,0.30738964,3045.2,3044.9,0.31722822]
[1731160989322,0.68747641,3045.3,3044.9,0.31722822]
[1731160989527,0.30738496,3045.2,3044.9,0.31722822]
[1731160989722,0.68747641,3045.3,3044.9,0.31722822]
[1731160990038,0.30738504,3045.2,3044.9,0.31722822]
[1731160990202,0.68747641,3045.3,3044.9,0.31722822]
[1731160990401,0.30738638,3045.2,3044.9,0.31722822]
[1731160990628,0.68747641,3045.3,3044.9,0.31722822]
[1731160990784,0.30738617,3045.2,3044.9,0.31722822]
[1731160990985,0.68747641,3045.3,3044.9,0.31722822]
[1731160991280,0.30738716,3045.2,3044.9,0.31722822]
[1731160991480,0.68747641,3045.3,3044.4,2.7237822]
[1731160991687,1.79966529,3045.2,3044.5,0.4485]
[1731160991882,0.8048,3045.2,3044.5,0.55604725]
[1731160992929,0.8048,3045.2,3045.0,2.7237822]
[1731160993104,0.68747641,3045.4,3045.1,0.27237822]
[1731160993425,0.68747641,3045.4,3045.1,0.1070976]
[1731160993426,0.68747641,3045.3,3045.1,0.1070976]
[1731160993591,0.68747641,3045.3,3044.7,2.7237822]
[1731160993787,0.68747641,3045.3,3044.8,0.1073224]
[1731160994013,0.68747641,3045.3,3044.7,2.7237822]
[1731160994330,0.68747641,3045.3,3044.8,0.43469942]
[1731160995189,0.30737591,3045.2,3044.8,0.43469942]
[1731160995427,0.68747641,3045.3,3044.8,0.43469942]
[1731160995626,0.30737843,3045.2,3044.8,0.43469942]
[1731160995793,0.68747641,3045.3,3044.8,0.43469942]
[1731160995994,0.68747641,3045.3,3044.9,0.31584816]
[1731160996293,0.68747641,3045.3,3045.0,0.10717133]
[1731160997093,0.30738061,3045.2,3045.0,0.10717133]
[1731160997398,0.8048,3045.1,3044.5,0.4485]
[1731160997598,0.8048,3045.1,3044.6,0.45886928]
[1731160998118,1.49227641,3045.1,3044.6,0.45886928]
[1731160998297,0.30740655,3045.0,3044.6,0.45886928]
[1731160998504,1.49227641,3045.1,3044.6,0.45886928]
[1731160998688,0.3074071,3045.0,3044.6,0.45886928]
[1731160998919,0.68747641,3045.0,3044.6,0.10747109]
[1731160999291,0.30741619,3044.9,3044.4,3.06548185]
[1731160999487,0.68747641,3045.0,3044.7,0.10739776]
[1731160999829,0.30739493,3044.9,3044.8,0.10732282]
[1731161000029,0.30739493,3044.9,3044.4,3.06548185]
[1731161000211,0.68747641,3045.0,3044.4,3.06548185]
[1731161000212,0.68747641,3045.0,3044.5,0.10754767]
[1731161000542,0.30737835,3044.9,3044.5,0.10754767]
[1731161000829,1.49227641,3044.9,3044.5,0.10754767]
[1731161001029,0.99487623,3044.8,3044.5,0.10754767]
[1731161001189,0.99487623,3044.7,3044.1,2.7237822]
[1731161001386,0.3073421,3044.6,3044.2,0.10778024]
[1731161001590,0.68747641,3044.7,3044.2,0.10778024]
[1731161001908,0.99481897,3044.6,3044.2,0.10778024]
[1731161002229,0.68747641,3044.7,3044.2,0.10778024]
[1731161002436,0.30724328,3044.6,3044.2,0.10778024]
[1731161002597,0.68747641,3044.7,3044.2,0.10778024]
[1731161003041,0.30724339,3044.6,3044.2,0.10778024]
[1731161003224,0.68747641,3044.7,3044.2,0.10778024]
[1731161003424,0.68747641,3044.7,3044.2,0.79750931]
[1731161004335,0.68747641,3044.8,3044.2,0.79750931]
[1731161004541,0.30710524,3044.7,3044.2,0.79750931]
[1731161004705,0.30710516,3044.7,3044.2,0.79750931]
[1731161004900,0.68747641,3044.8,3044.2,0.79750931]
[1731161005099,1.11190507,3044.7,3044.2,0.10778024]
[1731161005426,1.49227641,3044.7,3044.2,0.10778024]
[1731161006206,0.8048,3044.7,3044.2,0.10778024]
[1731161007934,0.30694407,3044.6,3044.2,0.10778024]
[1731161008246,1.49227641,3044.7,3044.2,0.10778024]
[1731161008247,0.8048,3044.7,3044.2,0.10778024]
[1731161009943,0.68747641,3044.9,3044.4,2.7237822]
[1731161010142,0.68747641,3045.2,3044.9,0.4485]
[1731161010309,0.68747641,3045.4,3045.1,2.7237822]
[1731161010644,0.68747641,3045.8,3045.2,0.44493316]
[1731161010803,0.30675651,3045.7,3045.2,0.06566911]
[1731161011010,1.50127641,3045.9,3045.2,0.06566911]
[1731161011208,0.99423378,3045.8,3045.1,2.7237822]
[1731161011437,0.30675737,3045.7,3045.2,0.10688583]
[1731161011633,0.68747641,3045.8,3045.1,2.7237822]
[1731161011818,0.3067192,3045.7,3045.2,0.10688583]
[1731161012139,0.3067252,3045.6,3044.9,0.4485]
[1731161012325,0.3067252,3045.5,3044.9,0.4485]
[1731161012524,0.68747641,3045.6,3045.0,0.10724348]
[1731161012744,0.30672937,3045.5,3045.0,0.10724348]
[1731161013043,0.68747641,3045.6,3045.0,0.10724348]
[1731161013253,0.99421308,3045.5,3045.0,0.10724348]
[1731161013420,0.8138,3045.3,3045.0,0.10724348]
[1731161013619,0.8138,3045.3,3044.6,0.4485]
[1731161013832,0.8138,3045.3,3044.7,0.10723216]
[1731161016244,0.30677655,3045.2,3044.7,0.10723216]
[1731161016451,1.50127641,3045.3,3044.6,0.4485]
[1731161016651,0.30679267,3045.2,3044.6,0.4485]
[1731161016850,1.50127641,3045.3,3044.7,0.10721313]
[1731161017051,0.30679164,3045.2,3044.7,0.10721313]
[1731161017254,1.50127641,3045.3,3044.7,0.10721313]
[1731161017553,0.30236101,3045.2,3044.8,2.78946023]
[1731161017725,0.68747641,3045.6,3044.9,0.4485]
[1731161018052,0.68747641,3045.6,3045.0,0.06567286]
[1731161018256,0.68747641,3045.6,3045.1,0.10668971]
[1731161018458,0.68747641,3045.6,3044.9,0.73816734]
[1731161018750,0.68747641,3045.6,3045.0,0.17264917]
[1731161019132,0.68747641,3045.5,3045.0,0.17264917]
[1731161019456,0.68747641,3045.5,3045.0,0.1069763]
[1731161019961,0.94083365,3045.5,3045.0,0.1069763]
[1731161020116,0.68747641,3045.4,3045.0,0.1069763]
[1731161020455,0.68747641,3045.4,3044.7,0.4485]
[1731161020655,0.68747641,3045.4,3044.8,0.10691448]
[1731161021359,0.68747641,3045.5,3044.8,0.10691448]
[1731161022666,0.68747641,3045.4,3044.8,0.10691448]
[1731161022960,0.68747641,3045.5,3044.8,0.10691448]
[1731161023148,0.68747641,3045.4,3044.8,0.10691448]
[1731161025557,0.68747641,3045.5,3044.8,0.10691448]
[1731161025926,0.8138,3045.4,3044.8,0.10691448]
[1731161026259,0.68747641,3045.3,3044.8,0.10691448]
[1731161026557,0.68747641,3045.3,3044.7,0.4485]
[1731161026764,0.68747641,3045.3,3044.9,0.10683955]
[1731161026930,0.68747641,3045.3,3044.8,0.10691448]
[1731161027128,0.68747641,3045.3,3045.0,0.10676463]
[1731161027320,0.68747641,3045.3,3044.9,0.10683955]
[1731161027558,0.68747641,3045.3,3045.1,0.10668971]
[1731161027751,0.68747641,3045.3,3045.0,0.10676463]
[1731161028020,0.68747641,3045.3,3045.1,0.10668971]
[1731161028248,0.68747641,3045.3,3044.7,0.4485]
[1731161028249,0.68747641,3045.3,3044.8,0.06567817]
[1731161028446,0.8138,3045.4,3044.7,0.4485]
[1731161028447,1.50127641,3045.4,3044.9,0.10683955]
[1731161028648,1.50127641,3045.4,3044.7,0.4485]
[1731161028961,1.50127641,3045.4,3044.8,0.10691448]
[1731161029128,1.75463365,3045.4,3044.8,0.10691448]
[1731161029332,0.68747641,3045.3,3044.8,0.10691448]
[1731161029532,0.30686828,3045.2,3044.8,0.10691448]
[1731161029757,0.68747641,3045.3,3044.7,0.4485]
[1731161029961,0.68747641,3045.3,3044.9,0.10683875]
[1731161030145,0.30686798,3045.2,3044.8,0.10691368]
[1731161030346,0.68747641,3045.3,3044.7,0.4485]
[1731161030544,0.30686859,3045.2,3044.9,0.10683875]
[1731161030766,0.68747641,3045.3,3044.8,0.10691368]
[1731161030951,0.30686906,3045.2,3044.7,0.4485]
[1731161031153,1.50127641,3045.4,3044.9,0.10683875]
[1731161031352,0.99435769,3045.3,3044.8,0.10691368]
[1731161031650,0.30688128,3045.2,3044.9,0.10683875]
[1731161031850,0.68747641,3045.3,3044.7,0.4485]
[1731161032062,0.30688719,3045.2,3044.8,0.10691368]
[1731161032244,0.68747641,3045.3,3044.7,0.4485]
[1731161032439,0.30691871,3045.2,3044.8,0.10691368]
[1731161032640,0.68747641,3045.3,3044.7,0.4485]
[1731161032977,0.30691674,3045.2,3044.8,0.10691368]
[1731161033270,0.68747641,3045.3,3044.7,0.4485]
[1731161033428,0.30695429,3045.2,3044.8,0.10691368]
[1731161033627,0.68747641,3045.3,3044.7,0.4485]
[1731161033933,0.30694936,3045.2,3044.8,0.10691368]
[1731161034131,0.30694936,3045.1,3044.8,0.10691368]
[1731161034330,0.68747641,3045.2,3044.7,0.4485]
[1731161034542,0.30699636,3045.1,3044.7,0.4485]
[1731161034745,0.68747641,3045.2,3044.8,0.10691368]
[1731161034964,0.30699642,3045.1,3044.8,0.10691368]
[1731161035268,0.68747641,3045.3,3044.7,0.4485]
[1731161035431,0.30704558,3045.2,3044.7,0.4485]
[1731161035754,0.30704558,3045.1,3044.8,0.10691368]
[1731161035949,0.68747641,3045.3,3044.7,0.4485]
[1731161036256,0.30704298,3045.2,3044.7,0.4485]
[1731161036457,0.30704298,3045.1,3044.8,0.10693309]
[1731161036655,0.68747641,3045.3,3044.7,0.4485]
[1731161036862,0.30710496,3045.2,3044.7,0.4485]
[1731161037033,0.30710496,3045.1,3044.8,0.10693309]
[1731161037379,0.68747641,3045.3,3044.9,1.25726651]
[1731161037560,0.30717105,3045.2,3044.9,1.25726651]
[1731161037765,0.30717105,3045.1,3044.9,1.25726651]
[1731161038075,0.68747641,3045.3,3045.0,0.10678324]
[1731161038244,0.8138,3045.4,3045.1,1.25726651]
[1731161038245,0.30716583,3045.2,3045.1,1.25726651]
[1731161038447,0.30716583,3045.2,3045.1,1.36397484]
[1731161041759,0.30716583,3045.2,3045.1,1.81247484]
[1731161042567,0.30716583,3045.2,3045.1,0.10670833]
[1731161042977,0.30716583,3045.2,3044.9,1.25726651]
[1731161043147,0.68747641,3045.4,3045.1,0.10692119]
[1731161043352,0.811,3045.3,3044.2,0.9985]
[1731161043692,0.811,3045.3,3044.7,1.25726651]
[1731161043693,0.30744887,3045.2,3044.7,1.25726651]
[1731161043845,0.30744887,3045.1,3044.8,0.10693429]
[1731161044045,0.30744887,3045.0,3044.7,1.25726651]
[1731161044390,0.68747641,3045.2,3044.8,0.10693429]
[1731161044684,0.30746517,3045.1,3044.7,1.70576651]
[1731161044849,0.30746517,3045.0,3044.8,0.10693429]
[1731161045054,0.30746517,3044.9,3044.7,1.25726651]
[1731161045376,0.68747641,3045.2,3044.8,0.10693429]
[1731161045689,1.99462012,3045.1,3044.6,1.25726651]
[1731161045851,0.30746193,3045.0,3044.7,0.1070072]
[1731161046184,0.30746193,3044.9,3044.7,0.1070072]
[1731161046386,0.30746193,3044.8,3044.7,0.1070072]
[1731161047153,0.30744576,3044.8,3044.7,0.1070072]
[1731161047684,0.30742883,3044.8,3044.7,0.1070072]
[1731161049751,0.30742883,3044.8,3044.4,1.25726651]
[1731161049959,0.30742883,3044.7,3044.4,1.25726651]
[1731161050167,0.95942183,3045.0,3044.4,1.25726651]
[1731161050359,0.30745413,3044.9,3044.4,1.25726651]
[1731161050584,0.30745413,3044.8,3044.4,1.25726651]
[1731161050801,0.95942183,3045.0,3044.4,1.25726651]
[1731161051089,1.45467641,3044.8,3044.1,0.34095156]
[1731161051295,0.99489645,3044.7,3044.1,1.25726651]
[1731161051469,0.99489645,3044.6,3044.1,1.25726651]
[1731161051675,0.30742004,3044.5,3044.1,1.25726651]
[1731161051995,0.30742004,3044.4,3044.1,1.25726651]
[1731161052292,0.68747641,3044.6,3044.1,1.25726651]
[1731161052515,0.30726597,3044.5,3044.1,1.25726651]
[1731161052703,0.30726597,3044.4,3044.1,1.25726651]
[1731161052900,0.68747641,3044.6,3044.1,1.25726651]
[1731161053106,0.3072682,3044.5,3044.1,1.25726651]
[1731161053281,0.3072682,3044.4,3044.0,0.4485]
[1731161053634,0.68747641,3044.5,3044.1,1.25726651]
[1731161054112,0.30718369,3044.4,3044.1,1.25726651]
[1731161054313,0.68747641,3044.5,3044.1,1.25726651]
[1731161055785,0.68747641,3044.5,3044.0,0.4485]
[1731161055989,1.76173458,3044.4,3043.9,1.25726651]
[1731161056219,1.45467641,3044.4,3044.1,1.25726651]
[1731161056582,1.45467641,3044.4,3043.8,0.4485]
[1731161056785,1.45467641,3044.4,3043.9,1.25726651]
[1731161057903,0.99442085,3044.3,3043.9,1.25726651]
[1731161058239,0.68747641,3044.3,3043.8,0.4485]
[1731161058509,0.68747641,3044.2,3043.8,1.70576651]
[1731161059133,0.68747641,3044.4,3044.1,0.4485]
[1731161059341,0.68747641,3044.5,3044.2,1.25726651]
[1731161059545,0.68747641,3044.7,3044.2,1.25726651]
[1731161059834,0.68747641,3044.6,3044.2,1.25726651]
[1731161060011,0.68747641,3044.7,3044.3,0.10842845]
[1731161060409,0.68747641,3044.7,3044.2,0.0656908]
[1731161060598,0.68747641,3044.7,3044.4,0.10835347]
[1731161060798,0.68747641,3044.7,3044.3,1.25726651]
[1731161061038,0.68747641,3044.7,3044.5,0.10827849]
[1731161061332,1.79949603,3044.8,3044.6,0.10822796]
[1731161061333,0.68747641,3044.8,3044.6,0.10822796]
[1731161061498,0.68747641,3044.9,3044.6,0.10822796]
[1731161061904,0.68747641,3044.9,3044.6,0.1739134]
[1731161062104,0.68747641,3044.9,3044.6,0.10822796]
[1731161062302,0.68747641,3044.9,3044.5,1.70576651]
[1731161062641,0.68747641,3044.9,3044.6,0.10830132]
[1731161062948,0.68747641,3044.9,3044.5,1.70576651]
[1731161063297,0.68747641,3044.9,3044.6,0.10832578]
[1731161063530,0.68747641,3044.9,3044.5,1.70576651]
[1731161063962,0.68747641,3044.9,3044.6,0.10835023]
[1731161064361,0.68747641,3044.9,3044.5,1.70576651]
[1731161064783,0.68747641,3044.9,3044.6,0.10727055]
[1731161065069,0.68747641,3045.0,3044.6,0.10727055]
[1731161065279,0.68747641,3045.0,3044.5,1.70576651]
[1731161065937,0.68747641,3045.0,3044.6,0.10727055]
[1731161066549,0.68747641,3045.0,3044.7,1.25726651]
[1731161066773,0.68747641,3045.1,3044.7,1.25726651]
[1731161067535,0.68747641,3045.2,3045.0,0.4485]
[1731161067741,0.68747641,3045.4,3045.1,1.25726651]
[1731161067985,0.68747641,3045.4,3045.1,1.3641648]
[1731161068278,0.68747641,3045.4,3045.3,1.25726651]
[1731161068480,0.68747641,3045.7,3045.3,1.25726651]
[1731161068780,0.68747641,3045.7,3045.4,0.10665697]
[1731161068984,0.68747641,3045.6,3045.4,0.10665697]
[1731161069183,0.68747641,3045.7,3045.4,0.10665697]
[1731161069636,0.7642,3045.8,3045.4,0.10665697]
[1731161070367,1.45167641,3045.8,3045.4,0.10665697]
[1731161070686,1.45167641,3045.8,3045.3,1.25726651]
[1731161070985,1.45167641,3045.8,3045.4,0.10664888]
[1731161071382,0.7642,3045.8,3045.4,0.10664888]
[1731161072585,1.45167641,3045.8,3045.4,0.10664888]
[1731161072909,1.45167641,3045.8,3045.5,0.10657398]
[1731161073111,0.30644508,3045.7,3045.1,1.25726651]
[1731161073282,1.45167641,3045.8,3045.2,0.1067987]
[1731161073486,0.99389487,3045.7,3045.1,1.25726651]
[1731161073689,1.70007365,3045.8,3045.2,0.1067987]
[1731161073911,0.30640322,3045.7,3045.2,0.1067987]
[1731161074126,1.70007365,3045.8,3045.2,0.1067987]
[1731161074339,0.30640238,3045.7,3045.2,0.1067987]
[1731161074504,1.70007365,3045.8,3045.2,0.1067987]
[1731161074703,0.30636207,3045.7,3045.2,0.1067987]
[1731161074892,1.70007365,3045.8,3045.2,0.1067987]
[1731161075097,0.30636212,3045.7,3045.2,0.1067987]
[1731161075323,1.70007365,3045.8,3045.2,0.1067987]
[1731161075833,1.70007365,3045.8,3045.1,1.25726651]
[1731161076008,1.45167641,3045.8,3045.1,1.25726651]
[1731161076795,0.30628163,3045.7,3045.1,1.25726651]
[1731161077133,1.45167641,3045.8,3045.2,0.10758717]
[1731161077332,0.30628258,3045.7,3045.1,1.25726651]
[1731161077541,1.45167641,3045.8,3045.2,0.10758717]
[1731161077729,1.45167641,3045.8,3045.1,1.25726651]
[1731161077730,0.55465073,3045.7,3045.1,1.25726651]
[1731161078026,0.24839724,3045.7,3045.1,1.25726651]
[1731161078426,0.24839724,3045.7,3045.2,0.10758717]
[1731161078869,0.24839724,3045.7,3045.1,1.25726651]
[1731161079365,0.93587365,3045.7,3045.2,0.10770278]
[1731161079667,0.17000737,3045.6,3045.2,0.10770278]
[1731161080040,0.17000737,3045.6,3045.0,1.70576651]
[1731161080247,0.17000737,3045.6,3045.3,0.10761692]
[1731161080441,0.17000737,3045.6,3045.4,0.10754198]
[1731161080847,0.17000737,3045.6,3045.0,1.70576651]
[1731161081434,0.17000737,3045.6,3045.1,0.10776681]
[1731161082366,0.8327,3045.5,3044.7,1.25726651]
[1731161082670,0.16901838,3045.4,3044.7,1.25726651]
[1731161082871,0.16901838,3045.4,3044.8,0.10810974]
[1731161083274,0.85649479,3045.4,3044.7,1.25726651]
[1731161083445,0.30630081,3045.3,3044.7,1.25726651]
[1731161083650,0.85649479,3045.4,3044.9,1.25726651]
[1731161083867,0.16891948,3045.3,3044.9,1.25726651]
[1731161084372,0.16891948,3045.3,3045.0,0.10792127]
[1731161084932,0.16891948,3045.3,3044.7,1.70576651]
[1731161085132,0.16891948,3045.3,3044.8,0.1080712]
[1731161085557,0.16891948,3045.3,3044.7,1.70576651]
[1731161085763,0.16891948,3045.3,3044.9,0.10799623]
[1731161085959,0.16891948,3045.3,3044.8,0.1080712]
[1731161086164,0.8327,3045.2,3045.0,0.10792855]
[1731161086377,0.8327,3045.2,3044.5,1.25726651]
[1731161086583,0.8327,3045.0,3044.5,1.25726651]
[1731161087455,0.8162,3044.4,3043.9,0.3409482]
[1731161087655,0.8162,3044.2,3043.1,1.25726651]
[1731161087868,0.8162,3044.2,3042.6,0.01]
[1731161087869,0.306546,3044.1,3043.5,1.25726651]
[1731161088090,0.8162,3044.2,3043.5,1.25726651]
[1731161088295,0.30666441,3044.1,3043.0,0.4485]
[1731161088479,0.30666441,3044.0,3043.2,1.25726651]
[1731161088684,0.8162,3044.2,3043.2,1.25726651]
[1731161088896,0.30657474,3044.1,3043.2,1.42784316]
[1731161089102,0.8162,3044.2,3043.2,1.42784316]
[1731161089405,0.8162,3044.2,3043.2,0.17057665]
[1731161089564,0.30642218,3044.1,3043.2,0.17057665]
[1731161089760,0.8162,3044.2,3043.2,0.17057665]
[1731161089998,0.30642235,3044.1,3043.2,0.17057665]
[1731161090198,0.8162,3044.2,3043.2,0.17057665]
[1731161090399,0.30627481,3044.1,3043.2,0.17057665]
[1731161090565,0.8162,3044.2,3043.2,0.17057665]
[1731161090765,0.30627526,3044.1,3043.2,0.17057665]
[1731161091089,0.8162,3044.2,3043.2,0.17057665]
[1731161091266,0.30627661,3044.1,3043.2,0.17057665]
[1731161091470,0.8162,3044.6,3043.2,0.17057665]
[1731161091768,0.55,3044.7,3043.0,3.17539977]
[1731161091769,0.8162,3043.9,3043.0,3.17539977]
[1731161092696,0.8162,3043.9,3043.1,0.0657149]
[1731161093077,0.8162,3043.9,3043.0,3.17539977]
[1731161093275,0.8162,3043.9,3043.1,0.31753998]
[1731161094224,0.8162,3043.9,3043.0,0.4485]
[1731161094429,0.8162,3043.9,3042.7,2.72689977]
[1731161094602,0.8162,3043.9,3043.1,0.10596462]
[1731161094807,0.8162,3043.9,3042.7,3.17539977]
[1731161095029,0.8162,3043.9,3043.2,0.10473279]
[1731161095192,0.8162,3043.7,3042.5,3.82072027]
[1731161095396,0.8162,3043.5,3042.5,3.82072027]
[1731161095926,0.8162,3043.5,3042.6,0.10536107]
[1731161100196,0.8162,3043.3,3042.6,0.10536107]
[1731161100895,0.8162,3043.3,3042.7,0.4485]
[1731161101228,0.8162,3043.3,3042.8,0.10556962]
[1731161101609,0.8162,3043.3,3042.7,0.4485]
[1731161101811,0.8162,3043.3,3042.9,0.10549457]
[1731161102034,0.8162,3043.3,3042.8,0.10556962]
[1731161102223,0.8162,3043.3,3043.0,0.10541953]
[1731161102410,0.8162,3043.9,3042.9,0.10549457]
[1731161102648,0.8162,3043.9,3043.1,0.1053445]
[1731161102824,0.8162,3043.9,3042.9,0.33466188]
[1731161103030,0.8162,3043.9,3043.2,0.10526947]
[1731161103213,0.8162,3043.9,3042.9,0.33466188]
[1731161103408,0.8162,3043.9,3043.3,0.10519444]
[1731161103652,3.01,3043.9,3042.1,0.4485]
[1731161103850,3.01,3043.9,3042.1,0.79335]
[1731161103851,0.8162,3043.6,3042.1,0.79335]
[1731161104153,0.8162,3043.4,3042.2,0.10601999]
[1731161104454,0.8162,3043.4,3042.3,2.72689977]
[1731161104763,0.8162,3043.4,3042.4,0.10586985]
[1731161106431,0.8162,3043.4,3042.1,0.4485]
[1731161106756,0.8162,3043.4,3042.2,0.35164312]
[1731161106919,0.8162,3043.4,3042.3,0.10595261]
[1731161107620,0.8162,3043.4,3042.4,0.4485]
[1731161107951,0.8162,3043.4,3042.5,0.17153372]
[1731161108113,0.8162,3043.4,3042.5,0.10580248]
[1731161108557,0.8162,3043.4,3042.5,0.43392271]
[1731161109073,0.8162,3043.4,3042.5,0.10580248]
[1731161109446,0.55,3043.1,3042.5,0.10580248]
[1731161109783,0.7863,3043.0,3042.6,0.10572863]
[1731161110084,0.7863,3043.0,3042.2,0.4485]
[1731161110378,0.7863,3043.0,3042.0,0.4485]
[1731161110583,0.7863,3043.0,3042.1,0.10610398]
[1731161112698,0.7863,3043.0,3042.2,0.06573873]
[1731161112895,0.7863,3043.0,3042.2,0.33472425]
[1731161113203,0.7863,3043.0,3042.3,0.10598705]
[1731161114609,0.7863,3043.0,3042.0,0.4485]
[1731161114762,0.7863,3043.0,3042.4,0.10591198]
[1731161114960,0.7863,3043.0,3042.0,0.4485]
[1731161115192,0.7863,3043.0,3042.1,0.1061372]
[1731161120971,0.7676,3042.8,3042.1,0.1061372]
[1731161121178,0.30699191,3042.7,3041.5,0.5876057]
[1731161121510,0.7676,3042.5,3041.6,0.10079782]
[1731161122083,0.30707927,3042.4,3041.6,0.10079782]
[1731161122388,0.55,3042.4,3041.6,0.10079782]
[1731161122592,1.07464492,3042.3,3041.6,0.10079782]
[1731161122911,0.7676,3042.2,3041.6,0.10079782]
[1731161124054,0.7676,3042.0,3041.6,0.10079782]
[1731161124233,0.55,3041.9,3041.6,0.10079782]
[1731161124430,0.7676,3041.8,3041.5,0.1391057]
[1731161125676,0.55,3041.7,3041.5,0.1391057]
[1731161125829,1.62490182,3041.6,3041.5,0.1391057]
[1731161126679,1.3176,3041.6,3041.5,0.1391057]
[1731161126833,1.62447118,3041.6,3041.5,0.1391057]
[1731161127458,2.30492286,3041.6,3041.5,0.1391057]
[1731161128043,1.6240483,3041.6,3041.5,0.1391057]
[1731161128262,1.53645313,3041.6,3041.5,0.1391057]
[1731161128465,0.7676,3041.6,3041.5,0.1391057]
[1731161128666,0.784,3041.9,3041.5,0.1391057]
[1731161130169,0.784,3042.4,3041.5,0.1391057]
[1731161130477,0.784,3042.4,3041.6,0.10088926]
[1731161132083,0.784,3042.4,3041.6,0.16264201]
[1731161134179,0.784,3042.4,3041.7,0.4485]
[1731161134391,0.784,3042.6,3041.8,0.16254104]
[1731161134547,0.784,3042.6,3041.7,0.4485]
[1731161135396,0.784,3043.1,3041.8,0.0657458]
[1731161135690,0.99627295,3043.1,3041.9,0.4485]
[1731161135853,0.784,3043.1,3041.9,0.4485]
[1731161136055,0.784,3043.1,3042.1,0.4485]
[1731161136384,0.784,3043.1,3042.2,0.16220768]
[1731161139576,0.784,3043.1,3042.3,0.4485]
[1731161139910,4.16552885,3043.5,3042.4,0.16205347]
[1731161139911,0.7815,3043.4,3042.4,0.16205347]
[1731161140092,0.30622948,3043.3,3042.4,0.16205347]
[1731161140268,0.30622948,3043.2,3042.4,0.16205347]
[1731161140466,0.7815,3043.4,3042.4,0.16205347]
[1731161140681,0.30623353,3043.3,3042.4,0.16205347]
[1731161140907,0.30623353,3043.2,3042.4,0.16205347]
[1731161141077,0.55,3043.3,3042.4,0.16205347]
[1731161142765,0.55,3043.3,3042.6,0.4485]
[1731161142968,0.68087456,3043.8,3042.8,0.4485]
[1731161143209,0.30615324,3043.7,3043.0,0.4485]
[1731161143372,0.7815,3043.9,3043.1,0.16144849]
[1731161143569,0.7815,3043.9,3043.1,0.06571466]
[1731161143769,0.7815,3043.9,3043.2,0.16139713]
[1731161144076,0.7815,3044.1,3043.4,0.4485]
[1731161144276,0.68087456,3044.3,3043.4,0.4485]
[1731161144277,0.7815,3044.3,3043.4,0.4485]
[1731161144490,0.24836864,3044.3,3043.4,0.4485]
[1731161144704,0.7815,3044.5,3043.4,0.4485]
[1731161144864,0.7815,3044.7,3043.5,0.4485]
[1731161145065,0.30581301,3044.6,3043.5,0.4485]
[1731161145301,0.7815,3044.7,3043.5,0.4485]
[1731161145608,0.68087456,3044.9,3043.7,0.4485]
[1731161145780,0.30555865,3044.8,3043.7,0.4485]
[1731161145983,0.17621864,3044.9,3043.7,0.4485]
[1731161146191,0.30555661,3044.8,3043.7,0.4485]
[1731161146416,0.17621864,3044.9,3043.7,0.4485]
[1731161146836,0.55,3044.8,3043.7,0.4485]
[1731161147624,0.7746,3044.7,3043.7,0.4485]
[1731161147821,0.55,3044.6,3043.8,0.16091688]
[1731161151054,0.55,3044.8,3043.9,0.4485]
[1731161151202,0.7746,3045.0,3043.9,0.4485]
[1731161151403,0.7746,3045.0,3044.0,0.16070659]
[1731161151602,0.7746,3045.0,3043.9,0.4485]
[1731161152646,0.55,3044.9,3043.9,0.4485]
[1731161153310,0.55,3044.7,3043.9,0.4485]
[1731161154151,0.55,3044.7,3044.0,0.16068801]
[1731161154464,0.55,3044.7,3043.9,0.4485]
[1731161154918,0.55,3044.7,3044.0,0.16068801]
[1731161155573,3.55,3044.4,3043.6,0.4485]
[1731161156052,0.55,3044.4,3043.6,0.4485]
[1731161156218,0.55,3044.5,3043.6,0.4485]
[1731161159158,0.8346,3044.8,3043.7,0.16061009]
[1731161159356,1.246029,3044.8,3043.8,0.4485]
[1731161160393,0.55,3044.5,3043.8,0.4485]
[1731161162152,0.7746,3044.4,3043.8,0.4485]
[1731161162455,0.55,3044.3,3043.5,0.4485]
[1731161162861,0.55,3044.3,3043.6,0.1605402]
[1731161163193,0.55,3044.3,3043.5,0.4485]
[1731161163194,0.55,3044.1,3043.5,0.4485]
[1731161163689,0.55,3043.4,3041.8,0.4485]
[1731161163860,3.7746,3043.5,3041.8,0.4485]
[1731161163861,3.55,3043.2,3041.8,0.4485]
[1731161164193,0.55,3043.0,3041.9,0.14890979]
[1731161164395,0.55,3043.0,3042.0,0.4485]
[1731161164592,0.55,3043.0,3042.1,0.14875555]
[1731161165708,0.55,3043.0,3042.2,0.4485]
[1731161166193,0.55,3043.0,3042.3,0.14860133]
[1731161166383,0.55,3043.0,3042.2,0.4485]
[1731161166587,0.55,3043.0,3042.3,0.14860133]
[1731161166913,0.55,3043.0,3042.2,0.4485]
[1731161167313,0.55,3043.0,3042.3,0.14860133]
[1731161167682,0.55,3043.0,3042.2,0.4485]
[1731161168097,0.55,3043.0,3042.3,0.14860133]
[1731161168300,3.55,3043.2,3042.3,0.14860133]
[1731161168515,0.55,3043.0,3042.2,0.4485]
[1731161168816,1.3128,3043.0,3042.3,0.14860133]
[1731161169018,1.3128,3043.0,3042.2,0.4485]
[1731161169314,1.3128,3043.0,3042.3,0.14863961]